fUSD/lending_fUSD_20240211
["ID","MTS","AMOUNT","RATE_DAILY","PERIOD"]
[313761771,1707685838220,-151.0212,0.00022998,3]
[313761772,1707685838230,-151.0212,0.00022998,3]
[313761773,1707685838240,-151.0212,0.00022998,3]
[313761774,1707685838249,-151.0212,0.00022998,3]
[313761775,1707685838259,-151.0212,0.00022998,3]
[313761776,1707685838268,-151.0212,0.00022998,3]
[313761777,1707685838277,-151.0212,0.00022998,3]
[313761778,1707685838287,-151.0212,0.00022998,3]
[313761779,1707685838296,-151.0212,0.00022998,3]
[313761780,1707685838306,-151.0212,0.00022998,3]
[313761781,1707685838315,-151.0212,0.00022998,3]
[313761782,1707685838325,-151.0212,0.00022998,3]
[313761783,1707685838334,-151.0212,0.00022998,3]
[313761784,1707685838344,-151.0212,0.00022998,3]
[313761785,1707685838353,-151.0212,0.00022998,3]
[313761786,1707685838363,-151.0212,0.00022998,3]
[313761787,1707685838372,-151.0212,0.00022998,3]
[313761788,1707685838382,-151.0212,0.00022998,3]
[313761789,1707685838674,-151.0212,0.00022998,3]
[313761790,1707685838684,-151.0212,0.00022998,3]
[313761791,1707685838693,-151.0212,0.00022998,3]
[313761792,1707685838702,-151.0212,0.00022998,3]
[313761793,1707685838711,-151.0212,0.00022998,3]
[313761794,1707685838720,-151.0212,0.00022998,3]
[313761795,1707685838729,-151.0212,0.00022998,3]
[313761796,1707685838738,-151.0212,0.00022998,3]
[313761797,1707685838748,-151.0212,0.00022998,3]
[313761798,1707685838757,-151.0212,0.00022998,3]
[313761799,1707685838766,-151.0212,0.00022998,3]
[313761800,1707685838775,-151.0212,0.00022998,3]
[313761801,1707685838784,-151.0212,0.00022998,3]
[313761802,1707685838795,-151.0212,0.00022998,3]
[313761803,1707685838804,-151.0212,0.00022998,3]
[313761804,1707685838813,-151.0212,0.00022998,3]
[313761805,1707685838822,-151.0212,0.00022998,3]
[313761806,1707685838831,-151.0212,0.00022998,3]
[313761807,1707685838839,-3066.06605837,0.00022999,2]
[313761808,1707685838848,-249.39768581,0.00022999,2]
[313761809,1707685838857,-291.6711707,0.00022999,2]
[313761810,1707685838866,-1411.501326,0.00022999,2]
[313761811,1707685838875,-168.17100853,0.00022999,2]
[313761812,1707685838884,-360.30355171,0.00022999,2]
[313761813,1707685838894,-264.66122128,0.00022999,2]
[313761814,1707685838902,-185.71524179,0.00022999,2]
[313761815,1707685838912,-228.79120946,0.00022999,2]
[313761816,1707685838920,-500.0,0.00022999,2]
[313761817,1707685838929,-463.78961736,0.00022999,2]
[313761818,1707685838938,-488.40663073,0.00022999,2]
[313761819,1707685838947,-500.0,0.00022999,2]
[313761820,1707685838956,-500.0,0.00022999,2]
[313761821,1707685838966,-269.75196147,0.00022999,2]
[313761822,1707685838974,-549.45437004,0.00022999,2]
[313761823,1707685838984,-150.0,0.00022999,2]
[313761824,1707685838992,-150.0,0.00022999,2]
[313761825,1707685839005,-150.0,0.00022999,2]
[313761826,1707685839014,-150.0,0.00022999,2]
[313761827,1707685839023,-150.0,0.00022999,2]
[313761828,1707685839032,-150.0,0.00022999,2]
[313761829,1707685839042,-150.0,0.00022999,2]
[313761830,1707685839051,-150.0,0.00022999,2]
[313761831,1707685839061,-150.0,0.00022999,2]
[313761832,1707685839070,-150.0,0.00022999,2]
[313761833,1707685839079,-150.0,0.00022999,2]
[313761834,1707685839089,-150.0,0.00022999,2]
[313761835,1707685839097,-15302.72957243,0.00023,2]
[313761836,1707685839106,-377.78762907,0.00023,3]
[313761837,1707685839116,-2606.395889,0.00023,2]
[313761838,1707685839125,-30249.04125614,0.00023,2]
[313761839,1707685839664,-1641.13909564,0.00023,2]
[313761840,1707685839680,-3216218.30588983,0.00023,2]
[313761841,1707685839699,-359.99149375,0.00023,2]
[313761842,1707685839710,-301.06218014,0.00023,2]
[313761843,1707685839722,-3125.50990038,0.00023,2]
[313761857,1707685840704,-18269.8195909,0.00023,2]
[313761858,1707685840870,-312.30573537,0.00023,2]
[313761859,1707685840926,-251.6375,0.00023,2]
[313761882,1707685843057,-544.10587771,0.00023,2]
[313761898,1707685843172,-4542.12737763,0.00023,2]
[313761913,1707685844021,-19610.48044586,0.00023,2]
[313761914,1707685844137,-515.36792404,0.00023,2]
[313761915,1707685844149,-2222.7699996,0.00023,2]
[313761916,1707685844193,-310.2590087,0.00023,2]
[313761917,1707685844251,-2345.21634741,0.00023,2]
[313761933,1707685844262,-490.2129047,0.00023,2]
[313761935,1707685844517,-1228.15636633,0.00023,2]
[313761937,1707685844528,-10144.71405754,0.00023,2]
[313761942,1707685844560,-1940.48708927,0.00023,2]
[313761944,1707685844570,-17750.87304341,0.00023,2]
[313762114,1707685846083,-5000.0,0.00023,2]
[313762122,1707685846143,-9573.23523601,0.00023,2]
[313762124,1707685846155,-31236.48040614,0.00023,2]
[313762126,1707685846167,-950.0,0.00023,2]
[313762131,1707685846200,-825.44688319,0.00023,2]
[313762133,1707685846212,-1134.13449414,0.00023,2]
[313762135,1707685846223,-895.80707542,0.00023,2]
[313762137,1707685846234,-368.48169456,0.00023,2]
[313762141,1707685846259,-382.88143247,0.00023,2]
[313762143,1707685846270,-6150.0,0.00023,2]
[313762149,1707685846318,-428.23618367,0.00023,2]
[313762151,1707685846329,-2187.04816452,0.00023,2]
[313762154,1707685846340,-735.9234,0.00023,2]
[313762156,1707685846352,-503.5,0.00023,2]
[313762158,1707685846364,-842.0,0.00023,2]
[313762161,1707685846383,-20497.56198621,0.00023,2]
[313762163,1707685846394,-612.85068032,0.00023,2]
[313762549,1707685939987,13508.0015,0.000224,2]
[313762551,1707686002691,572.9125,0.000224,2]
[313762569,1707686238385,-218.07,0.00022613,2]
[313762609,1707687032242,-150.0,0.00022899,2]
[313762611,1707687032251,-150.0,0.00022899,2]
[313762638,1707687032501,-27.10664373,0.000229,2]
[313762641,1707687032521,-285.91883941,0.000229,2]
[313762643,1707687032531,-777.25277119,0.000229,2]
[313762647,1707687032569,-665.41722881,0.000229,2]
[313762648,1707687032578,-1667.23076557,0.000229,2]
[313762649,1707687032601,-907.94,0.000229,2]
[313762651,1707687032612,-2220.8144468,0.000229,2]
[313762653,1707687032624,-204.01478763,0.000229,2]
[313762655,1707687032633,-1096.5218,0.000229,2]
[313762657,1707687032642,-253.64384852,0.000229,2]
[313762659,1707687032651,-151.0212,0.00022998,3]
[313762661,1707687032660,-151.0212,0.00022998,3]
[313762663,1707687032669,-151.0212,0.00022998,3]
[313762665,1707687032678,-151.0212,0.00022998,3]
[313762667,1707687032687,-151.0212,0.00022998,3]
[313762669,1707687032697,-151.0212,0.00022998,3]
[313762671,1707687032706,-151.0212,0.00022998,3]
[313762673,1707687032715,-151.0212,0.00022998,3]
[313762675,1707687032724,-151.0212,0.00022998,3]
[313762677,1707687032734,-68.64458133,0.00022998,3]
[313762681,1707687032760,-82.37661867,0.00022998,3]
[313762683,1707687032769,-151.0212,0.00022998,3]
[313762685,1707687032779,-151.0212,0.00022998,3]
[313762687,1707687032788,-151.0212,0.00022998,3]
[313762688,1707687032797,-151.0212,0.00022998,3]
[313762691,1707687032806,-151.0212,0.00022998,3]
[313762692,1707687032816,-23.4348161,0.00022998,3]
[313762697,1707687032852,-127.5863839,0.00022998,3]
[313762699,1707687032862,-151.0212,0.00022998,3]
[313762701,1707687032872,-151.0212,0.00022998,3]
[313762703,1707687032882,-124.81199703,0.00022998,3]
[313762800,1707687038346,-26.20920297,0.00022998,3]
[313762801,1707687038355,-151.0212,0.00022998,3]
[313762802,1707687038366,-151.0212,0.00022998,3]
[313762803,1707687038377,-151.0212,0.00022998,3]
[313762804,1707687038387,-151.0212,0.00022998,3]
[313762805,1707687038396,-151.0212,0.00022998,3]
[313762806,1707687038406,-151.0212,0.00022998,3]
[313762807,1707687038415,-151.0212,0.00022998,3]
[313762808,1707687038425,-151.0212,0.00022998,3]
[313762809,1707687038434,-151.0212,0.00022998,3]
[313762810,1707687038444,-151.0212,0.00022998,3]
[313762811,1707687038454,-108.70276664,0.00022998,3]
[313762812,1707687038468,-42.31843336,0.00022998,3]
[313762813,1707687038478,-151.0212,0.00022998,3]
[313762814,1707687038490,-77.21056664,0.00022998,3]
[313762815,1707687038502,-73.81063336,0.00022998,3]
[313762816,1707687038511,-151.0212,0.00022998,3]
[313762817,1707687038521,-151.0212,0.00022998,3]
[313762818,1707687038530,-151.0212,0.00022998,3]
[313762819,1707687038540,-151.0212,0.00022998,3]
[313762820,1707687038549,-151.0212,0.00022998,3]
[313762821,1707687038559,-151.0212,0.00022998,3]
[313762822,1707687038568,-151.0212,0.00022998,3]
[313762823,1707687038577,-151.0212,0.00022998,3]
[313762824,1707687038587,-3716.46866706,0.00022999,2]
[313762825,1707687038596,-150.0,0.00022999,2]
[313762826,1707687038606,-150.0,0.00022999,2]
[313762827,1707687038615,-150.0,0.00022999,2]
[313762828,1707687038625,-150.0,0.00022999,2]
[313762830,1707687038634,-7651.36478621,0.00023,2]
[313762832,1707687038643,-188.89381454,0.00023,3]
[313762834,1707687038652,-3202779.59838866,0.00023,2]
[313762836,1707687038664,-299.2518509,0.00023,2]
[313762849,1707687041634,-1139.56358455,0.00023,2]
[313762855,1707687043437,-911.88606402,0.00023,2]
[313762856,1707687043450,-264.1135013,0.00023,2]
[313762857,1707687043494,-2029.12234471,0.00023,2]
[313762858,1707687043552,-525.69513999,0.00023,2]
[313762863,1707687046314,-1235.24068655,0.00023,2]
[313762864,1707687046374,-3723.63271562,0.00023,2]
[313762865,1707687046386,-623.77854029,0.00023,2]
[313762866,1707687046400,-308.97417599,0.00023,2]
[313762867,1707687046434,-8160.7430423,0.00023,2]
[313762868,1707687046446,-5608.20007664,0.00023,2]
[313762869,1707687046459,-2679.66724348,0.00023,2]
[313762870,1707687046472,-6924.20626495,0.00023,2]
[313762871,1707687046550,-35601.66591013,0.00023,2]
[313762873,1707687063220,284.82513962,0.00022769,2]
[313762874,1707687085718,2314.07478739,0.00022768,2]
[313762875,1707687090509,247.42374992,0.00022768,2]
[313762879,1707687269376,176.54,0.00022789,2]
[313762880,1707687399007,288.37487269,0.00022789,2]
[313762881,1707687537543,9137.77218277,0.00021753,7]
[313762882,1707687538677,3201.05199738,0.00022789,7]
[313762883,1707687542284,595.89606313,0.00022789,2]
[313762884,1707687543745,315.79414295,0.00022789,2]
[313762885,1707687545093,155.64463355,0.00022789,2]
[313762886,1707687545335,165.49690328,0.00022789,2]
[313762887,1707687546801,624.61821592,0.00021982,2]
[313762888,1707687549692,1833.6,0.00022545,2]
[313762889,1707687553503,1998.2055703,0.00021753,7]
[313762890,1707687557898,4823.1250808,0.000228,2]
[313762891,1707687558726,452.61803687,0.00022789,7]
[313762892,1707687566994,590.6,0.00020881,2]
[313762893,1707687578076,2576.26862343,0.0002277,2]
[313762894,1707687601192,175.35,0.00022047,2]
[313762895,1707687619736,250.0,0.00022092,2]
[313762896,1707687631697,250.65,0.00022346,2]
[313762897,1707687645167,250.0,0.00021884,2]
[313762898,1707687654120,171.55,0.00021884,2]
[313762899,1707687675054,389.02348811,0.00022401,2]
[313762900,1707687678733,4722.10110107,0.00022401,2]
[313762901,1707687681650,2157.44704768,0.00022401,2]
[313762902,1707687682643,281.10874192,0.00022401,2]
[313762903,1707687683909,301.86774059,0.00022401,2]
[313762904,1707687685534,182.96836172,0.00022379,2]
[313762905,1707687687381,155.0,0.00022401,2]
[313762906,1707687692844,315.86538596,0.00022401,2]
[313762907,1707687694438,526.74284305,0.00022401,2]
[313762908,1707687698203,514.49987931,0.00022401,2]
[313762909,1707687700471,168.62,0.00021913,2]
[313762910,1707687703180,2606.19621168,0.00022401,2]
[313762911,1707687703474,524.30268033,0.00022401,2]
[313762912,1707687703863,216.20314673,0.00022401,2]
[313762913,1707687704013,272.30182203,0.00022401,2]
[313762914,1707687705587,472.0,0.00022401,2]
[313762915,1707687709187,1142.56291216,0.00022401,2]
[313762916,1707687709560,284.25492609,0.00022401,2]
[313762917,1707687709671,373.16375001,0.00022401,2]
[313762918,1707687710851,526.45960743,0.00022401,2]
[313762919,1707687713191,280.78181247,0.00022401,2]
[313762920,1707687713860,322.18986417,0.00022401,2]
[313762921,1707687718753,358.4877294,0.00022401,2]
[313762922,1707687721252,503.96228903,0.00022401,2]
[313762923,1707687721289,519.63661714,0.00022401,2]
[313762924,1707687721661,150.0,0.00022401,2]
[313762925,1707687722832,363.52229964,0.00022401,2]
[313762926,1707687728634,197.96719848,0.00022401,2]
[313762927,1707687757766,494.56295727,0.00022401,2]
[313762928,1707687759114,281.10874192,0.00022401,2]
[313762929,1707687771130,272.30182203,0.00022401,2]
[313762930,1707687777424,588.907808,0.000224,2]
[313762931,1707687778383,156.06475516,0.000224,2]
[313762932,1707687779338,526.45960743,0.00022401,2]
[313762933,1707687780877,526.74284305,0.00022401,2]
[313762934,1707687783214,2916.56350754,0.00022399,2]
[313762935,1707687784080,284.25492609,0.00022399,2]
[313762936,1707687784231,2606.19621168,0.00022401,2]
[313762937,1707687784314,534.82,0.0002192,2]
[313762938,1707687786318,322.18986417,0.00022401,2]
[313762939,1707687789239,6443.32,0.0002192,2]
[313762940,1707687796557,200.0,0.00021914,2]
[313762941,1707687808446,1244.37,0.00022086,2]
[313762942,1707687831734,1155.89,0.00021914,2]
[313762943,1707687843850,415.72,0.00021914,2]
[313762944,1707687852088,159.69185477,0.00022306,2]
[313762945,1707687887797,855.14,0.00021881,2]
[313762946,1707687891668,2705.0,0.00021881,2]
[313762947,1707687964634,1052.21,0.00021855,2]
[313762948,1707687967642,500.0,0.00021855,2]
[313762949,1707687970285,588.907808,0.00022401,2]
[313762950,1707687976960,526.45960743,0.00022401,2]
[313762951,1707687979221,200.0,0.00021864,2]
[313762952,1707687979603,284.25492609,0.00022401,2]
[313762953,1707687989155,155.0,0.00022401,2]
[313762954,1707687989725,23900.0,0.00021858,2]
[313762955,1707688022298,2000.0,0.00021871,2]
[313762956,1707688074603,561.07,0.00019946,2]
[313762957,1707688074804,561.07,0.0002221,2]
[313762958,1707688083433,250.0,0.00021918,2]
[313762959,1707688086319,177.2,0.00022,2]
[313762960,1707688102997,500.0,0.00022,2]
[313762961,1707688106671,258.41,0.00022,2]
[313762962,1707688107806,250.0,0.0002185,2]
[313762963,1707688107961,258.41,0.00022137,2]
[313762964,1707688109716,516.22,0.00022274,2]
[313762965,1707688157141,284.25492609,0.00022401,2]
[313762997,1707688231449,-156.06475516,0.00022402,2]
[313763000,1707688231458,-181.58,0.00022403,2]
[313763003,1707688231468,-250.65,0.00022407,2]
[313763005,1707688231477,-340.71980844,0.00022438,2]
[313763012,1707688231506,-76.6163453,0.00022438,2]
[313763015,1707688231515,-250.65,0.00022468,2]
[313763018,1707688231524,-159.69185477,0.00022491,2]
[313763021,1707688231534,-1000.0,0.00022528,2]
[313763024,1707688231543,-228.69191924,0.00022529,2]
[313763027,1707688231554,-21.95808076,0.00022529,2]
[313763030,1707688231564,-177.2,0.00022548,2]
[313763033,1707688231573,-500.0,0.00022548,2]
[313763036,1707688231582,-250.65,0.00022591,2]
[313763038,1707688231591,-159.69185477,0.00022593,2]
[313763041,1707688231600,-250.65,0.00022652,2]
[313763044,1707688231609,-150.0,0.00022663,2]
[313763047,1707688231619,-5717.9729505,0.00022664,2]
[313763049,1707688231631,-1525.80663386,0.00022664,2]
[313763054,1707688233779,-833.79793316,0.00022664,2]
[313763055,1707688233793,-2065.45835351,0.00022664,2]
[313763056,1707688233834,-1589.57481014,0.00022664,2]
[313763057,1707688233847,-6654.48371898,0.00022664,2]
[313763058,1707688233878,-1044.87513962,0.00022664,2]
[313763059,1707688233890,-615.6374002,0.00022664,2]
[313763060,1707688233914,-322.84270231,0.00022664,2]
[313763061,1707688233925,-4098.18839408,0.00022664,2]
[313763062,1707688233935,-155.40880575,0.00022667,2]
[313763063,1707688233944,-159.69185477,0.00022696,2]
[313763064,1707688233954,-250.65,0.00022713,2]
[313763065,1707688233963,-300.0,0.00022769,2]
[313763066,1707688233973,-420.0,0.0002277,2]
[313763067,1707688233984,-250.65,0.00022775,2]
[313763068,1707688233993,-150.0,0.00022799,2]
[313763069,1707688234004,-1712.2254,0.000228,2]
[313763070,1707688234014,-250.65,0.00022836,2]
[313763071,1707688234023,-229.39835981,0.00022896,3]
[313763072,1707688234034,-3059.27150435,0.00022896,2]
[313763073,1707688234044,-389.62371473,0.00022896,2]
[313763074,1707688234055,-284.23605229,0.00022896,2]
[313763075,1707688234065,-391.56099355,0.00022896,2]
[313763077,1707688234075,-314.50072466,0.00022896,2]
[313763079,1707688234085,-500.0,0.00022896,2]
[313763081,1707688234095,-468.37979164,0.00022896,2]
[313763084,1707688234104,-215.26109869,0.00022896,2]
[313763087,1707688234114,-185.5600203,0.00022896,2]
[313763089,1707688234123,-1139.78306733,0.00022896,2]
[313763091,1707688234131,-338.10142901,0.00022896,2]
[313763093,1707688234144,-20.38630039,0.00022896,2]
[313763096,1707688234154,-500.79305704,0.00022896,2]
[313763098,1707688234164,-519.63661714,0.00022896,2]
[313763099,1707688234173,-363.52229964,0.00022896,2]
[313763101,1707688234183,-197.8622325,0.00022896,2]
[313763103,1707688234192,-244.16516553,0.00022896,2]
[313763105,1707688234201,-364.05729729,0.00022896,2]
[313763107,1707688234213,-162.16033117,0.00022896,2]
[313763109,1707688234222,-2916.56350754,0.00022896,2]
[313763111,1707688234231,-322.18986417,0.00022896,2]
[313763113,1707688234241,-607.21145481,0.00022896,2]
[313763115,1707688234251,-281.30374165,0.00022896,2]
[313763117,1707688234260,-283.83163888,0.00022896,2]
[313763119,1707688234269,-3573.8969104,0.00022897,2]
[313763120,1707688234278,-250.65,0.00022897,2]
[313763121,1707688234287,-2216.53909374,0.00022898,2]
[313763123,1707688234307,-1381.7786119,0.00022898,2]
[313763125,1707688234319,-13252.1567903,0.00022898,2]
[313763127,1707688234327,-155.0,0.00022898,2]
[313763128,1707688234337,-2318.65841291,0.00022898,2]
[313763130,1707688234346,-1408.28428995,0.00022898,2]
[313763132,1707688234355,-2331.62604922,0.00022898,2]
[313763134,1707688234364,-231.3983886,0.00022898,2]
[313763136,1707688234374,-2150.13332931,0.00022898,2]
[313763141,1707688234554,-155.0,0.00022898,2]
[313763142,1707688234612,-155.0,0.00022898,2]
[313763143,1707688234621,-2794.8662989,0.00022898,2]
[313763144,1707688234630,-770.52841191,0.00022898,2]
[313763145,1707688234639,-531.69250034,0.00022898,2]
[313763146,1707688234648,-4097.5565544,0.00022898,2]
[313763151,1707688237462,-391.45736558,0.00022408,2]
[313763152,1707688237683,-1372.06793841,0.00022408,2]
[313763153,1707688237695,-1679.53648275,0.00022408,2]
[313763154,1707688237706,-1764.92992517,0.00022408,2]
[313763155,1707688237795,-161.43828809,0.00022408,2]
[313763156,1707688237805,-159.69185477,0.00022798,2]
[313763157,1707688237815,-562.09793856,0.00022898,2]
[313763158,1707688237824,-1050.85386154,0.00022898,2]
[313763159,1707688237833,-1046.72092174,0.00022898,2]
[313763160,1707688237843,-1066.30932914,0.00022898,2]
[313763161,1707688237852,-216.71797193,0.00022898,2]
[313763162,1707688237861,-204.10845599,0.00022898,2]
[313763163,1707688237871,-178.75326338,0.00022898,2]
[313763164,1707688237880,-14423.19248803,0.00022898,2]
[313763165,1707688237892,-4671.23775566,0.00022898,2]
[313763166,1707688237902,-349.51389996,0.00022899,2]
[313763168,1707688237911,-5544.85639513,0.00022899,2]
[313763170,1707688237920,-286.94002623,0.000229,2]
[313763171,1707688237930,-2084.8264704,0.000229,7]
[313763173,1707688237939,-648.2561,0.000229,2]
[313763175,1707688237948,-5000.0,0.000229,2]
[313763177,1707688237958,-157.3764,0.000229,2]
[313763179,1707688237967,-221.93836742,0.000229,2]
[313763181,1707688237976,-250.65,0.00022958,2]
[313763183,1707688237985,-499.99,0.00022996,2]
[313763185,1707688237994,-4128.12555705,0.00022996,2]
[313763187,1707688238004,-402.21754644,0.00022998,2]
[313763189,1707688238013,-944.35797001,0.00022998,2]
[313763191,1707688238022,-1493.79988571,0.00022998,2]
[313763193,1707688238031,-289.73142306,0.00022998,2]
[313763194,1707688238041,-432.51651173,0.00022998,2]
[313763197,1707688238051,-155.26201102,0.00022998,2]
[313763198,1707688238060,-155.0,0.00022998,2]
[313763200,1707688238069,-156.60153268,0.00022998,2]
[313763202,1707688238078,-536.37733122,0.00022998,2]
[313763204,1707688238087,-525.12679006,0.00022998,2]
[313763206,1707688238096,-156.6898714,0.00022998,2]
[313763208,1707688238104,-416.73824066,0.00022998,2]
[313763210,1707688238113,-156.44943752,0.00022998,2]
[313763213,1707688238123,-1260.34340966,0.00022998,4]
[313763215,1707688238133,-374.81233994,0.00022998,2]
[313763217,1707688238143,-155.0,0.00022998,2]
[313763219,1707688238152,-1161.88262757,0.00022998,2]
[313763221,1707688238161,-3148.06260981,0.00022998,2]
[313763223,1707688238170,-289.88703707,0.00022998,2]
[313763224,1707688238179,-896.60943409,0.00022998,2]
[313763226,1707688238188,-475.08618262,0.00022998,2]
[313763228,1707688238197,-257.20873955,0.00022998,2]
[313763230,1707688238207,-4325.34904083,0.00022998,2]
[313763232,1707688238216,-155.0,0.00022998,2]
[313763234,1707688238225,-151.0212,0.00022998,3]
[313763236,1707688238235,-151.0212,0.00022998,3]
[313763238,1707688238244,-151.0212,0.00022998,3]
[313763240,1707688238253,-151.0212,0.00022998,3]
[313763242,1707688238262,-151.0212,0.00022998,3]
[313763244,1707688238271,-151.0212,0.00022998,3]
[313763246,1707688238280,-151.0212,0.00022998,3]
[313763248,1707688238290,-151.0212,0.00022998,3]
[313763250,1707688238299,-151.0212,0.00022998,3]
[313763252,1707688238308,-151.0212,0.00022998,3]
[313763254,1707688238316,-151.0212,0.00022998,3]
[313763256,1707688238325,-151.0212,0.00022998,3]
[313763258,1707688238334,-151.0212,0.00022998,3]
[313763260,1707688238343,-151.0212,0.00022998,3]
[313763262,1707688238352,-151.0212,0.00022998,3]
[313763264,1707688238361,-151.0212,0.00022998,3]
[313763266,1707688238370,-151.0212,0.00022998,3]
[313763268,1707688238379,-151.0212,0.00022998,3]
[313763269,1707688238388,-151.0212,0.00022998,3]
[313763271,1707688238397,-151.0212,0.00022998,3]
[313763273,1707688238406,-151.0212,0.00022998,3]
[313763276,1707688238416,-151.0212,0.00022998,3]
[313763278,1707688238426,-151.0212,0.00022998,3]
[313763280,1707688238435,-151.0212,0.00022998,3]
[313763282,1707688238444,-151.0212,0.00022998,3]
[313763284,1707688238454,-151.0212,0.00022998,3]
[313763286,1707688238463,-151.0212,0.00022998,3]
[313763288,1707688238471,-151.0212,0.00022998,3]
[313763290,1707688238480,-151.0212,0.00022998,3]
[313763291,1707688238489,-151.0212,0.00022998,3]
[313763294,1707688238498,-151.0212,0.00022998,3]
[313763296,1707688238507,-151.0212,0.00022998,3]
[313763298,1707688238516,-151.0212,0.00022998,3]
[313763299,1707688238525,-151.0212,0.00022998,3]
[313763301,1707688238534,-151.0212,0.00022998,3]
[313763303,1707688238544,-151.0212,0.00022998,3]
[313763305,1707688238553,-151.0212,0.00022998,3]
[313763307,1707688238562,-151.0212,0.00022998,3]
[313763309,1707688238571,-151.0212,0.00022998,3]
[313763311,1707688238580,-151.0212,0.00022998,3]
[313763314,1707688238591,-336.08645099,0.00022999,2]
[313763315,1707688238600,-155.0,0.00022999,2]
[313763318,1707688238609,-733.59606579,0.00022999,2]
[313763320,1707688238618,-500.0,0.00022999,2]
[313763322,1707688238627,-199.28447533,0.00022999,2]
[313763324,1707688238636,-584.52572473,0.00022999,2]
[313763326,1707688238646,-155.58646028,0.00022999,2]
[313763328,1707688238655,-1377.22850274,0.00022999,2]
[313763329,1707688238664,-7940.74978621,0.00023,2]
[313763331,1707688238673,-188.89381454,0.00023,3]
[313763333,1707688238682,-1406882.92909121,0.00023,2]
[313763336,1707688238692,-1743361.30767309,0.00023,2]
[313763348,1707688240263,-567.103008,0.00022798,2]
[313763349,1707688240297,-399.33531389,0.00022798,2]
[313763393,1707688242751,-9627.89843721,0.00022798,2]
[313763454,1707688245488,-2000.0,0.00022798,2]
[313763455,1707688245586,-593.34560321,0.00022798,2]
[313763456,1707688245628,-602.02137635,0.00022798,2]
[313763457,1707688245739,-7179.74920823,0.00022798,2]
[313763459,1707688245751,-1111.93190577,0.00022798,2]
[313763723,1707688284771,300.0,0.00022303,2]
[313763725,1707688386609,2705.0,0.00022097,2]
[313763726,1707688400537,150.0,0.00022223,2]
[313763727,1707688405960,427.57,0.00022219,2]
[313763728,1707688418211,250.0,0.00022,2]
[313763729,1707688419461,250.0,0.00022274,2]
[313763730,1707688425694,200.0,0.00022,2]
[313763731,1707688466063,8676.71,0.00021894,2]
[313763732,1707688503160,500.0,0.00021869,2]
[313763733,1707688551401,2000.0,0.00021864,2]
[313763734,1707688598480,750.0,0.00021882,2]
[313763735,1707688620262,504.96,0.00019943,2]
[313763736,1707688620982,504.96,0.00022207,2]
[313763737,1707688652243,250.0,0.00021918,2]
[313763738,1707688720193,158.76,0.00021995,2]
[313763739,1707688720534,158.76,0.00022055,2]
[313763740,1707688720738,158.76,0.00022115,2]
[313763741,1707688720998,158.76,0.00022176,2]
[313763742,1707688721217,158.76,0.00022236,2]
[313763743,1707688721416,158.76,0.00022296,2]
[313763744,1707688721648,158.76,0.00022357,2]
[313763745,1707688722849,177.2,0.00022,2]
[313763746,1707688737448,4474.52,0.00021709,2]
[313763747,1707688842723,1013.09,0.00021739,2]
[313763748,1707688882979,213.78,0.00021729,2]
[313763749,1707688892846,366.62,0.00021729,2]
[313763750,1707688896520,840.0,0.00021729,2]
[313763751,1707688998591,272.30182203,0.00022401,2]
[313763752,1707689003605,250.08465082,0.00022401,2]
[313763753,1707689006696,216.65146267,0.00022401,2]
[313763754,1707689012795,212.8344093,0.00022401,2]
[313763755,1707689014273,297.04448897,0.00022401,2]
[313763756,1707689044129,205.0,0.00022226,2]
[313763757,1707689047442,159.69185477,0.00022392,2]
[313763758,1707689082705,454.46,0.00019843,2]